Cogmind - Beta 15 @@@ ROGUE MODE // 2025.09.01 @ 18:40:19 Player: JTMusky Result: Destroyed by S-27 Virus with Autogun Performance ------------- Evolutions (3) 1500 Regions Visited (5) 1000 Robots Destroyed (4) 20 Value Destroyed (227) 227 Prototype IDs (4) 80 Alien Tech Used (0) 0 Bonus (0) 0 TOTAL SCORE: 2827 Bonus ------- None Cogmind --------- Core Integrity 0/700 Matter 300/300 Energy 99/100 System Corruption 0% Temperature Cool (0) Movement Core (50) Location -7/Factory Parts ------- > --- POWER (2) -------- (None) > --- PROPULSION (3) --- (None) > --- UTILITY (6) ------ (None) > --- WEAPON (2) ------- (None) > --- INVENTORY (5) ---- Micro Nuclear Core Thermal Generator Subdweller Machine Gun High-powered Shotgun Peak State ------------ > --- POWER ------------ Light Nuclear Core Light Nuclear Core > --- PROPULSION ------- Flight Unit Flight Unit Flight Unit > --- UTILITY ---------- Structural Scanner Improved Terrain Scanner > --- WEAPON ----------- Light Assault Rifle Datajack > --- INVENTORY -------- Flight Unit Subdweller Machine Gun [Rating: 15] Favorites ----------- Power Light Ion Engine Engine Light Ion Engine Power Core Light Nuclear Core Propulsion Flight Unit Leg Aluminum Leg Flight Unit Flight Unit Utility Structural Scanner Device Structural Scanner Storage Small Storage Unit Weapon Light Assault Rifle Ballistic Gun Light Assault Rifle Slashing Weapon Katana Special Melee Weapon Datajack Build | -11 -10 -10 -8 -8 -7 ------- Run | Yrd Mat Sub Mat Sto Fac Slots Evolved 6 | . . . 4 . 2 Power 1 | . . . 1 . . Propulsion 1 | . . . 1 . . Utility 4 | . . . 2 . 2 Weapon . | . . . . . . Parts Attached 25 | 7 6 1 1 8 2 Power 5 | 1 . . 1 2 1 Engine 2 | 1 . . . 1 . Core 3 | . . . 1 1 1 Reactor . | . . . . . . Propulsion 10 | 2 3 1 . 4 . Treads . | . . . . . . Leg 2 | 2 . . . . . Wheel . | . . . . . . Hover . | . . . . . . Flight 8 | . 3 1 . 4 . Utility 6 | 2 2 . . 2 . Device 5 | 1 2 . . 2 . Storage 1 | 1 . . . . . Processor . | . . . . . . Hackware . | . . . . . . Protection . | . . . . . . Artifact . | . . . . . . Weapon 4 | 2 1 . . . 1 Energy Gun . | . . . . . . Energy Cannon . | . . . . . . Ballistic Gun 2 | 2 . . . . . Ballistic Cannon . | . . . . . . Launcher . | . . . . . . Special Weapon . | . . . . . . Impact Weapon . | . . . . . . Slashing Weapon 1 | . . . . . 1 Piercing Weapon . | . . . . . . Special Melee Weapon 1 | . 1 . . . . Unidentified Prototypes . | . . . . . . Parts Lost 17 | . . 2 1 10 4 Power 4 | . . 1 . 3 . Propulsion 6 | . . 1 . 4 1 Utility 4 | . . . 1 1 2 Weapon 3 | . . . . 2 1 Highest Loss Streak 6 | . . 1 1 6 3 To Critical Strikes . | . . . . . . Average Backups 4 | 5 5 3 4 3 3 Power . | . . . . . . Propulsion 2 | 3 3 2 2 . . Utility . | . . 1 1 . 1 Weapon . | 1 . . 1 1 2 Tool/Special . | . . . . . . Unused Backups 8 | . 6 . . . 2 Power 1 | . 1 . . . . Propulsion 4 | . 4 . . . . Utility . | . . . . . . Weapon 3 | . 1 . . . 2 Tool/Special . | . . . . . . Average Slot Usage (%) 72 | . 98 99 54 51 15 Engine 7 | . 14 13 . . . Core 1 | . . . 1 5 . Flight 21 | . 25 28 18 20 4 Device 21 | . 25 28 16 18 9 Ballistic Gun 11 | . 22 14 9 4 . Special Melee Weapon 5 | . 5 14 9 2 . Peak Build Rating 15 | 9 9 7 9 15 10 Average Rating 7 | 7 7 6 6 9 4 On Entrance 6 | . 9 7 6 8 6 Naked Turns 19 | . . . . . 19 Heaviest Build 11 | 11 11 8 8 9 2 Greatest Support 20 | 20 20 8 8 18 4 Greatest Overweight (x) 2 | 2 1 . . . . Average Overweight (x) . | . . . . . . Largest Inventory Capacity 8 | 8 8 5 5 5 5 Average Capacity 5 | 7 5 5 5 5 5 Most Carried 8 | 8 8 4 4 5 5 Average Carried 4 | 5 5 3 4 3 3 Final Capacity 8 | 8 5 5 5 5 5 Final Carried 6 | 6 4 4 4 3 4 Class Distribution -------------------- 64% | Mutant 35% | Infiltrator-Mutant Dominant Class ---------------- Infiltrator-Mutant | -10/Materials Infiltrator-Mutant | -10/Subcaves Infiltrator-Mutant | -8/Materials Mutant | -8/Storage Mutant | -7/Factory Resources | -11 -10 -10 -8 -8 -7 ----------- Run | Yrd Mat Sub Mat Sto Fac Matter Collected 464 | 234 124 28 . 63 15 Remotely . | . . . . . . Salvage Created 181 | 94 . . . . 87 Parts 8 | 5 . . . . 3 Haulers Intercepted . | . . . . . . Recyclers Shooed . | . . . . . . Parts Field Recycled . | . . . . . . Retrieved Matter . | . . . . . . Parts Self-Destructed . | . . . . . . Prevented . | . . . . . . Kills | -11 -10 -10 -8 -8 -7 ------- Run | Yrd Mat Sub Mat Sto Fac Combat Hostiles Destroyed 2 | . . . . . 2 Melee 2 | . . . . . 2 Classes Destroyed 3 | 2 . . . . 1 Tunneler 1 | 1 . . . . . Recycler 1 | 1 . . . . . Grunt 2 | . . . . . 2 Best Kill Streak 2 | 2 . . . . 2 Combat Bots Only 2 | . . . . . 2 Max Kills in Single Turn 1 | 1 . . . . 1 Gunslinging . | . . . . . . Exploded . | . . . . . . Melee 1 | . . . . . 1 Uniques/NPCs Destroyed . | . . . . . . Combat | -11 -10 -10 -8 -8 -7 -------- Run | Yrd Mat Sub Mat Sto Fac Hostile Shots Fired 247 | . 63 9 13 75 87 Missed 123 | . 38 6 8 40 31 Hits 124 | . 25 3 5 35 56 Projectile 124 | . 25 3 5 35 56 Critical Strikes 3 | . . 1 . 2 . Damage Taken 1754 | . 257 58 64 560 815 Core 1097 | . 124 20 14 230 709 Absorbed by Shields . | . . . . . . Core Remaining (%) 65 | 100 . 42 . 55 . Volleys Fired 21 | 6 7 . . 8 . Largest 2 | 2 2 . . 1 . Hottest 40 | 40 40 . . 20 . Shots Fired 34 | 12 14 . . 8 . Gun 34 | 12 14 . . 8 . Cannon . | . . . . . . Launcher . | . . . . . . Special . | . . . . . . Kinetic 34 | 12 14 . . 8 . Thermal . | . . . . . . Explosive . | . . . . . . Electromagnetic . | . . . . . . Robot Hit Streak 3 | 3 2 . . . . Robot Miss Streak 2 | 2 2 . . . . Penetration Max . | . . . . . . Secondary Targets . | . . . . . . Shots Hit Robots 12 | 6 2 . . . 4 Core Hits 7 | 4 1 . . . 2 Critical Kills . | . . . . . . Critical Parts Destroyed . | . . . . . . Critical Strikes . | . . . . . . Melee Attacks 8 | . . . . . 8 Impact . | . . . . . . Slashing 8 | . . . . . 8 Piercing . | . . . . . . Sneak Attacks . | . . . . . . Combat Hostiles . | . . . . . . Follow-up Attacks . | . . . . . . Damage Inflicted 238 | 70 13 . . 23 132 Guns 83 | 70 13 . . . . Cannons . | . . . . . . Explosions . | . . . . . . Melee 132 | . . . . . 132 Ramming 23 | . . . . 23 . Kinetic 83 | 70 13 . . . . Thermal . | . . . . . . Explosive . | . . . . . . Electromagnetic . | . . . . . . Impact . | . . . . . . Slashing 132 | . . . . . 132 Piercing . | . . . . . . Highest Corruption . | . . . . . . Average Corruption . | . . . . . . Corruption Purged . | . . . . . . Corruption Blocked . | . . . . . . Overload Shots . | . . . . . . Overflow Damage 11 | . . . . . 11 Projectiles . | . . . . . . Explosions . | . . . . . . Melee 11 | . . . . . 11 Knockbacks . | . . . . . . Impact . | . . . . . . Kinetic . | . . . . . . Secondary . | . . . . . . Self-Inflicted Damage 10 | . . . . 10 . Shots . | . . . . . . Rammed 5 | . . . . 4 1 Targets Rammed 5 | . . . . 4 1 Kicked . | . . . . . . Crushed . | . . . . . . Highest Temperature 10 | . 8 . . 10 . Average Temperature 5 | . 5 . . 5 . Received Heat Transfer 423 | . 93 21 36 243 30 Siege Activations . | . . . . . . Martial Activations . | . . . . . . Shielding Activations . | . . . . . . Robots Disrupted . | . . . . . . Combat Hostiles . | . . . . . . Robots Corrupted . | . . . . . . Combat Hostiles . | . . . . . . Parts Fried . | . . . . . . Impact Corruptions . | . . . . . . Robots Melted . | . . . . . . Combat Hostiles . | . . . . . . Parts Melted . | . . . . . . Heat Transferred . | . . . . . . Parts Sabotaged . | . . . . . . Parts Stolen . | . . . . . . Parts Stripped . | . . . . . . Power Chain Reactions . | . . . . . . Alert | -11 -10 -10 -8 -8 -7 ------- Run | Yrd Mat Sub Mat Sto Fac Maximum Alert Level 1 | . . . . 1 . Low Security (%) 99 | 100 100 . 100 97 100 Level 1 . | . . . . 2 . Level 2 . | . . . . . . Level 3 . | . . . . . . Level 4 . | . . . . . . Level 5 . | . . . . . . High Security . | . . . . . . Max Security . | . . . . . . Peak Influence 218 | 10 115 . 115 218 161 Initial 98 | . . . . 44 98 Average 40 | . 32 . 19 64 110 Influence Increases 886 | 10 164 . 115 444 153 Destroy 0b10 Robot/C 40 | . . . . . 40 Destroy 0b10 Robot/NC 10 | 10 . . . . . Destroy Leader 10 | . . . . . 10 Successful Hack 50 | . 24 . 5 9 12 Select Force Hacks 100 | . 50 . 50 . . Destroy Structure 1 | . . . . . 1 Partial Spotted 90 | . 15 . . 60 15 Lose Combat Pursuer 585 | . 75 . 60 375 75 Influence Decreases 745 | 10 164 . 10 331 230 Entered New Map 181 | . . . . 61 120 Time Decay 320 | 10 70 . . 170 70 Lost Part 150 | . . . 10 100 40 Purge Threat 94 | . 94 . . . . Squads Dispatched 8 | . 2 . 1 3 2 Investigation 5 | . 2 . 1 1 1 Extermination . | . . . . . . Reinforcement 3 | . . . . 2 1 Assault . | . . . . . . Garrison . | . . . . . . Intercept . | . . . . . . Searches Triggered . | . . . . . . Construction Impeded . | . . . . . . Haulers Reinforced . | . . . . . . Active Scanning Responses . | . . . . . . Cargo Convoy Interrupts . | . . . . . . Stealth | -11 -10 -10 -8 -8 -7 --------- Run | Yrd Mat Sub Mat Sto Fac Distress Signals 4 | . 1 . 1 2 . Communications Jammed . | . . . . . . Distress Signals . | . . . . . . Times Spotted 110 | . 39 6 10 42 13 Peak Tracking Total 15 | . 8 3 6 15 9 Tactical Retreats 20 | . 8 3 1 6 2 Traps | -11 -10 -10 -8 -8 -7 ------- Run | Yrd Mat Sub Mat Sto Fac Traps Triggered . | . . . . . . Indirectly . | . . . . . . Trap Hack Attempts . | . . . . . . Triggered . | . . . . . . Disarmed . | . . . . . . Reprogrammed . | . . . . . . Reused . | . . . . . . Traps Extracted . | . . . . . . Installed . | . . . . . . Triggered . | . . . . . . Machines | -11 -10 -10 -8 -8 -7 ---------- Run | Yrd Mat Sub Mat Sto Fac Machines Disabled . | . . . . . . Max in Single Turn . | . . . . . . Machines Repaired . | . . . . . . Machines Dismantled . | . . . . . . Machines Sabotaged 2 | . 1 . 1 . . Overloaded Fab Kills . | . . . . . . Hacking | -11 -10 -10 -8 -8 -7 --------- Run | Yrd Mat Sub Mat Sto Fac Machines Accessed 12 | . 5 1 1 3 2 Terminals 10 | . 5 . 1 3 1 Fabricators 1 | . . . . . 1 Repair Stations . | . . . . . . Recycling Units . | . . . . . . Scanalyzers . | . . . . . . Garrison Access . | . . . . . . Total Hacks 44 | . 20 5 4 10 5 Successful 26 | . 12 5 2 4 3 Failed 18 | . 8 . 2 6 2 Catastrophic 1 | . . . . 1 . Database Lockouts . | . . . . . . Manual 5 | . 3 . 1 1 . Terminals 37 | . 20 . 4 10 3 Fabricators 2 | . . . . . 2 Repair Stations . | . . . . . . Recycling Units . | . . . . . . Scanalyzers . | . . . . . . Garrison Access . | . . . . . . Terminal Hacks 22 | . 11 5 1 4 1 Record 6 | . . 5 . . 1 Robot Analysis 2 | . . . . 2 . Prototype ID Bank 2 | . 1 . 1 . . Emergency Access Points 1 | . 1 . . . . Alert Level 2 | . 2 . . . . Unreport Threat 1 | . 1 . . . . Locate Traps 2 | . 1 . . 1 . Maintenance Status 1 | . 1 . . . . Investigation Status 1 | . 1 . . . . Hauler Manifests 1 | . 1 . . . . Zone Layout 3 | . 2 . . 1 . Fabricator Hacks 2 | . . . . . 2 Network Status 1 | . . . . . 1 Build 1 | . . . . . 1 Repair Station Hacks . | . . . . . . Recycling Unit Hacks . | . . . . . . Scanalyzer . | . . . . . . Garrison Access Hacks . | . . . . . . Unauthorized Hacks 2 | . 1 . 1 . . Terminals 2 | . 1 . 1 . . Sabotage 2 | . 1 . 1 . . Fabricators . | . . . . . . Repair Stations . | . . . . . . Recycling Units . | . . . . . . Scanalyzers . | . . . . . . Garrison Access . | . . . . . . Data Cores Recovered . | . . . . . . Used . | . . . . . . Hacking Detections 8 | . 4 . 1 2 1 Full Trace Events 4 | . 2 . . 1 1 Feedback Events . | . . . . . . Feedback Blocked . | . . . . . . Robot Schematics Acquired . | . . . . . . Robots Built . | . . . . . . Authchips . | . . . . . . Time . | . . . . . . Total Robot Build Rating . | . . . . . . Part Schematics Acquired . | . . . . . . Parts Built . | . . . . . . Authchips . | . . . . . . Time 117 | . . . . . 117 Total Part Build Rating . | . . . . . . Parts Repaired . | . . . . . . Time . | . . . . . . Parts Recycled . | . . . . . . Recycled Matter . | . . . . . . Retrieved Matter . | . . . . . . Retrieved Components . | . . . . . . Parts Scanalyzed . | . . . . . . Part Schematics Acquired . | . . . . . . Parts Damaged . | . . . . . . Bothacking | -11 -10 -10 -8 -8 -7 ------------ Run | Yrd Mat Sub Mat Sto Fac Used RIF Installer . | . . . . . . Robots Hacked . | . . . . . . Non-combat . | . . . . . . Combat . | . . . . . . Robot Hacks Applied . | . . . . . . Relay Couplers Released . | . . . . . . Fabnet Peak Effective % . | . . . . . . Robots Rewired . | . . . . . . Allies Hacked . | . . . . . . Hacks Repelled . | . . . . . . Allies | -11 -10 -10 -8 -8 -7 -------- Run | Yrd Mat Sub Mat Sto Fac Total Allies . | . . . . . . Largest Group . | . . . . . . Highest-Rated Group . | . . . . . . Highest-Rated Ally . | . . . . . . Total Orders . | . . . . . . Ally Attacks . | . . . . . . Total Damage . | . . . . . . Kills . | . . . . . . Allies Corrupted . | . . . . . . Allies Melted . | . . . . . . Intel | -11 -10 -10 -8 -8 -7 ------- Run | Yrd Mat Sub Mat Sto Fac Active Infowar (turns) 1471 | 319 367 284 34 359 108 Terrain 910 | 319 127 . . 356 108 Structural 1074 | . 306 284 34 359 91 ECM 538 | . 239 284 15 . . Robot Analysis Total 2 | . . . . 2 . Derelict Logs Recovered 1 | . . 1 . . . Drone Launches . | . . . . . . Drone Recoveries . | . . . . . . Exploration | -11 -10 -10 -8 -8 -7 ------------- Run | Yrd Mat Sub Mat Sto Fac Turns Passed 1589 | 394 367 284 34 359 151 Spaces Moved 2648 | 132 794 724 88 652 258 Core 203 | 29 . . . 103 71 Treads . | . . . . . . Legs 115 | 103 12 . . . . Wheels . | . . . . . . Hover . | . . . . . . Flight 2330 | . 782 724 88 549 187 Fastest Speed 34 | 50 37 37 37 34 35 Average Speed 41 | 115 38 37 37 36 39 Slowest Speed 150 | 150 120 37 37 50 50 Overloaded Moves . | . . . . . . Propulsion Burnouts . | . . . . . . Robots Hopped 40 | . 14 . 2 23 1 Potential Cave-ins . | . . . . . . Cave-ins Triggered . | . . . . . . Exploration Rate (%) 41 | 9 99 36 17 82 6 Regions Visited 5 Branch Regions 2 Pre-discovered Areas 1 | . . 1 . . . Known Exits Taken 2 | . . . 1 1 . Unknown Exits Taken 3 | 1 1 1 . . . Scrap Searched . | . . . . . . Spaces Dug 1 | . . . . . 1 Terrain Destroyed 1 | . . . . . 1 Melee 1 | . . . . . 1 Projectile . | . . . . . . AOE . | . . . . . . Terrain Rammed . | . . . . . . Walls Destroyed . | . . . . . . Machines Disabled . | . . . . . . Actions | -11 -10 -10 -8 -8 -7 --------- Run | Yrd Mat Sub Mat Sto Fac Total 3056 | 363 834 739 86 739 295 Wait 346 | 208 19 14 . 80 25 Move 2563 | 131 765 723 83 605 256 Hop 40 | . 14 . 2 23 1 Pick Up 21 | 10 7 1 . 2 1 Fast Attach 17 | 4 4 . 1 7 1 Attach 9 | 3 1 1 . 3 1 Detach 5 | . 1 . . 3 1 Swap 3 | . 3 . . . . Drop 17 | 1 13 . . 3 . Fire 21 | 6 7 . . 8 . Melee 8 | . . . . . 8 Ram 5 | . . . . 4 1 Kick . | . . . . . . Crush . | . . . . . . Escape Stasis . | . . . . . . Rewire 1 | . . . . 1 . Trap . | . . . . . . Miscellaneous . | . . . . . . Route ------- -11/Scrapyard -10/Materials (discovered 5 exits: [*Mat x3] / [*Min] / *Sub) -10/Subcaves -8/Materials (discovered 4 exits: Fac x2 / *Sto x2) -8/Storage -7/Factory History --------- Turn | Location | Event 27 | -11/Scrapyard | Discovered new exit (range 15) 395 | -11/Scrapyard | Entered Materials 396 | -10/Materials | Build established: Mutant 473 | -10/Materials | Discovered new exit (range 10) 544 | -10/Materials | Discovered new exit (range 3) 591 | -10/Materials | Discovered new exit (range 16) 605 | -10/Materials | Discovered new exit (range 19) 759 | -10/Materials | Discovered new exit (range 8) 762 | -10/Materials | Entered Subcaves 763 | -10/Subcaves | Approached by a straggling Scientist 767 | -10/Subcaves | Discovered new exit (range 16) 792 | -10/Subcaves | Visited Clippyterm 794 | -10/Subcaves | Learned location of Section 7 (-2) 794 | -10/Subcaves | Learned Factory garrison access intel 830 | -10/Subcaves | Build established: Infiltrator-Mutant 907 | -10/Subcaves | Core integrity fell below 50% 931 | -10/Subcaves | A swath of the cavern ceiling suddenly collapsed 1029 | -10/Subcaves | Learned 8 Materials zone layouts 1046 | -10/Subcaves | Entered Materials 1046 | -8/Materials | Evolved 4 slots: Power x1, Propulsion x1, Utility x2 1047 | -8/Materials | Identified exit to Factory 1047 | -8/Materials | Identified exit to Storage 1080 | -8/Materials | Entered Storage 1385 | -8/Storage | Build established: Mutant 1404 | -8/Storage | Lost 6 parts (2p3n1u) 1421 | -8/Storage | Discovered exit to Factory (range 15) 1439 | -8/Storage | Entered Factory 1439 | -7/Factory | Evolved 2 slots: Utility x2 1440 | -7/Factory | Loaded intel: 3 garrison access locations 1568 | -7/Factory | Core integrity fell below 50% 1578 | -7/Factory | Lost 3 parts (1n2u) 1583 | -7/Factory | Core integrity fell below 20% 1590 | -7/Factory | Destroyed by S-27 Virus with Autogun Last Messages --------------- (113,156) - Idle (106,32) - Loaded: Phase Gun (115,142) - Building: Y-54 Guardian (132,147) - Loaded: Graphene Brace >>Build Building Phase Gun... ETC: 117 01547_ Imp. Terrain Scanner destroyed. 01549_ Acquired Katana. 01558_ O-16 Technician: "IFF HANDSHAKE FAILED. SECURING TERMINAL." 01560_ Connecting with Terminal... 01567_ G-47 Trooper destroyed. 01571_ Acquired 15 matter. 01573_ Destroyed VTOL Module. 01580_ ALERT: Hostiles spotted, dispatching reinforcements to Terminal F020. 01584_ Katana destroyed. 01584_ U-05 Engineer builds a Wall. 01586_ Slammed into S-27 Virus. Map ----- +----------------------------------------------------+ | ?????????????????????????????????????????????????? | | ?????????????????????????????????????????????????? | | ?????????????????????????????????????????????????? | | ?????????????????????????????????????????????##+#+ | | ?????????????????????????????????????????????# | | ?????????????????????????????????????????????# | | ?????????????????????????????????????????????#!!^ | | ?????????????????????????????????????????????#!!!= | | ????????????????????????????????????????????##!=! | | ????????????????????????????????????????????#" | | ????????????????????????????????????????????#T | | ????????????????????????????????????????????#" | | ???????????????????????????????????##????????# | | ????????????????????????????????#### ######### "" | | ????????????????????????????????# = !] # "" | | ????????????????????????????????# ]] # "" | | ????????????""??????????????????# ] # | | ????????????""??????????????????# # "" | | ????????????G??????#?############ """ """ # "" | | ????????????""?????# g !# """ """ + "" | | ????????????""?????# """"""""" # """ """ # | | ???????????????????# # # | | ???????????????????# """"""""" # """ !# | | ???????????????????# s/%""" # | | ???????????????????# """"""""" ]#!""" ""T"" # | | ???????????????????# @ s #*%%* """"" # | | ???????????????????# """"""""" !############## | | ???????????????????# #????###?????# | | ???????????????????# """"""""" #????????????# | | ???????????????????# #????????????# | | ???????????????????# ! #????????????? | | ???????????????????#######+######????????????? | | ?????????????????????????????????????????????? | | ?????????????????????????????????????????????? ? | | ?????????????????????????????????????????????????? | | ?????????????????????????????????????????????????? | | ?????????????????????????????????????????????????? | | ?????????????????????????????????????????????????? | | ?????????????????????????????????????????????????? | | ?????????????????????????????????????????????????? | | ?????????????????????????????????????????????????? | | ?????????????????????????????????????????????????? | | ?????????????????????????????????????????????????? | | ?????????????????????????????????????????????????? | | ?????????????????????????????????????????????????? | | ?????????????????????????????????????????????????? | | ?????????????????????????????????????????????????? | | ?????????????????????????????????????????????????? | | ?????????????????????????????????????????????????? | | ?????????????????????????????????????????????????? | +----------------------------------------------------+ Best States ------------- Heat Dissipation 34 Energy Generation 14 Energy Capacity 160 Matter Stores 300 Matter Capacity 300 Sight Range 16 Terrain Scan Range 16 Terrain Scan Density 10 ECM Strength 1 Additional Mass Support 6 Evasion (%) 63 Item Schematics ----------------- None Robot Schematics ------------------ None Fabricated ------------ Nothing Repaired ---------- Nothing Alien Tech Used ----------------- None Achievements -------------- None Challenges ------------ None Game ------ Seed ReflexCentriumKatana Manual? 0 Play Time 00:52:42 Cumulative 39.1 hours Start 2025.09.01 @ 16:44:25 End 2025.09.01 @ 18:40:19 Sessions 3 Manual Loads 0 Difficulty Rogue Special Mode None Game No. 52 Rogue 52 Adventurer 0 Explorer 0 Win Type - Total 0 Types 0/0/0/0/0/0/0/0/0/0 Lore% 14 Gallery% 17 Achievement% 19 Wizard Run 0 Options --------- Layout 2 ASCII 1 Keyboard 1 Movement Vi Keybinds 1 Fullscreen 2 Font 20/SmallcapsGlow Map View 56x54 Zoom Use 17% Tactical HUD 1 Map Filters NONE Filters NONE Steam 0 RUN: 51157f52-54c8-497f-8232-439cec425279